[Event "FIDE WSTC Open 50 2025"]
[Site "Prague"]
[Date "2025.02.19"]
[Round "3.21"]
[White "Ehlvest, Jaan"]
[Black "Olivier, Pierre"]
[Result "1-0"]
[Annotator "TA"]
[ECO "B30"]
[WhiteElo "2531"]
[BlackElo "2152"]
[PlyCount "71"]
[EventDate "2025.02.17"]
[EventType "team-tourn"]
[EventCountry "CZE"]
[SourceTitle "playchess.com"]
[Source "ChessBase"]
[SourceQuality "1"]
[TimeControl "40/5400+30:1800+30"]

{[%evp 18,71,9,0,52,43,47,48,64,52,107,115,183,183,186,177,185,191,176,176,212,215,206,215,216,209,208,205,202,193,266,187,185,179,201,202,189,191,190,168,163,168,163,171,162,150,183,179,214,195,345,357,443,452,451,445]} 1. e4 {[%emt 0:00:04]} c5 {[%emt 0:00:21]} 2. Nf3 {[%emt 0:00:08]} Nc6 {[%emt 0:00:06]} 3. Bb5 {[%emt 0:00:08]} Nf6 {[%emt 0:01:04]} 4. e5 {[%emt 0:01:29]} Nd5 {[%emt 0:00:48]} 5. Nc3 {[%emt 0:00:41]} Nc7 {[%emt 0:02:21]} 6. a4 {[%emt 0:01:51]} g6 {[%emt 0:05:52]} 7. O-O {[%emt 0:03:58]} Bg7 {[%emt 0:00:08]} 8. Re1 {[%emt 0:00:09]} O-O {[%emt 0:01:01]} 9. d3 {[%emt 0:00:51]} Nd4 {[%emt 0:20:25]} 10. Bc4 {[%emt 0:10:51]} b6 {[%emt 0:25:42] B31: Sicilian: 2...Nc6 3 Bb5 g6.} (10... d6 $11) 11. Nxd4 $14 {[%emt 0:09:09]} cxd4 {[%emt 0:00:08]} 12. Nb5 {[%emt 0:00:03]} Nxb5 {[%emt 0:05:09] White is slightly better.} 13. axb5 {[%emt 0:00:45]} Bb7 {[%emt 0:03:04] Prevents Bd5} (13... d5 $14 14. exd6 Qxd6) 14. Bg5 $16 {[%emt 0:05:28] White is more active.} Kh8 $146 {[%emt 0:00:20]} (14... h6 $16) (14... h6 15. Bh4 Kh7 16. Bb3 g5 17. Bg3 e6 18. Ra4 f5 19. exf6 Qxf6 20. f3 Qf5 {1-0 Bosboom,M (2426)-Reinderman,D (2588) BL2-West 1415 2014 (3.4)}) 15. Qg4 $18 {[%emt 0:05:08]} f6 {[%emt 0:04:06]} 16. exf6 {[%emt 0:00:10] Black is weak on the light squares} exf6 {[%emt 0:00:30]} 17. Bf4 {[%emt 0:04:12]} d5 {[%emt 0:04:03]} 18. Bb3 {[%emt 0:00:33]} a6 {[%emt 0:06:10]} 19. bxa6 {[%emt 0:02:08]} Rxa6 {[%emt 0:00:08]} 20. Rxa6 {[%emt 0:01:06]} Bxa6 {[%emt 0:00:01]} 21. Qe6 {[%emt 0:01:10] Prevents Re8} Bb5 {[%emt 0:06:43] [#] ...Re8 is the strong threat.} 22. Qxd5 {[%emt 0:01:30]} (22. Bxd5 $2 {is the wrong capture.} Re8 $19) 22... Qxd5 {[%emt 0:00:10]} 23. Bxd5 {[%emt 0:00:04]} Re8 {[%emt 0:00:20]} (23... Rc8 $142 24. Bb3 Bf8) 24. Ra1 {[%emt 0:15:33] Bc7 is the strong threat.} Bf8 {[%emt 0:08:27]} 25. h4 {[%emt 0:01:04]} Rd8 {[%emt 0:00:47]} 26. Bb3 {[%emt 0:00:58]} Bc5 {[%emt 0:01:09]} 27. Ra7 {[%emt 0:01:10]} Re8 {[%emt 0:01:53]} 28. Kf1 $36 {[%emt 0:19:38][%mdl 2048] Black is under strong pressure.} Re7 {[%emt 0:00:28]} 29. Rxe7 {[%emt 0:01:32]} Bxe7 {[%emt 0:00:02][%mdl 4096] Endgame KBB-KBB. White is a pawn up.} 30. Bc7 {[%emt 0:00:35]} Bc5 {[%emt 0:00:08]} 31. Bd5 {[%emt 0:00:18]} Ba6 {[%emt 0:02:43]} 32. Ke2 {[%emt 0:00:36]} b5 {[%emt 0:00:32][%cal Bb6b5,Bb5b4][%mdl 32]} 33. Kf3 {[%emt 0:03:25]} h5 {[%emt 0:00:43]} (33... Bc8 {is a better defense.} 34. Bc6 b4) 34. Ke4 {[%emt 0:02:15]} Bc8 {[%emt 0:00:13]} 35. Bc6 {[%emt 0:00:18]} b4 {[%emt 0:00:41]} 36. Kd5 {[%emt 0:00:32] Repels Be6+. White took control after the opening.   Weighted Error Value: White=0.05 (flawless) /Black=0.31  Mistake:       	---       	Black=4      OK:         	White=17    	Black=7      Best:        	White=2     	Black=1} 1-0

[Event "FIDE WSTC Open 50 2025"]
[Site "Prague"]
[Date "2025.02.19"]
[Round "3.22"]
[White "Kirszenberg, Marc"]
[Black "Kaidanov, Gregory"]
[Result "0-1"]
[Annotator "TA"]
[ECO "D35"]
[WhiteElo "2080"]
[BlackElo "2513"]
[PlyCount "82"]
[EventDate "2025.02.17"]
[EventType "team-tourn"]
[EventCountry "CZE"]
[SourceTitle "playchess.com"]
[Source "ChessBase"]
[SourceQuality "1"]
[TimeControl "40/5400+30:1800+30"]

{[%evp 12,82,22,21,29,27,22,18,37,29,36,29,47,11,26,13,10,0,7,0,0,-1,0,0,-7,-12,-7,-15,-4,-16,-3,-7,-9,-22,-21,-38,-37,-76,-54,-65,-80,-82,-91,-152,-160,-171,-168,-228,-141,-127,-117,-268,-222,-221,-223,-252,-126,-120,0,-257,-248,-307,-290,-369,-360,-359,-349,-367,-378,-370,-366,-435,-435]} 1. d4 {[%emt 0:00:03]} d5 {[%emt 0:00:09]} 2. c4 {[%emt 0:00:05]} e6 {[%emt 0:00:04]} 3. Nc3 {[%emt 0:00:07]} Nf6 {[%emt 0:00:05]} 4. cxd5 {[%emt 0:00:27]} exd5 {[%emt 0:00:06]} 5. Bg5 {[%emt 0:00:14]} Be7 {[%emt 0:00:23]} 6. e3 {[%emt 0:02:44]} h6 {[%emt 0:00:18]} 7. Bh4 {[%emt 0:00:08]} Bg4 {[%emt 0:00:32] D35: Queen's Gambit Declined: Exchange Variation.} 8. f3 {[%emt 0:01:43]} Be6 {[%emt 0:00:42]} 9. Bd3 {[%emt 0:00:42]} c5 {[%emt 0:00:41] The position is equal.} 10. Nge2 {[%emt 0:04:21]} Nc6 {[%emt 0:00:45]} 11. O-O {[%emt 0:04:02]} O-O {[%emt 0:00:49]} 12. Kh1 {[%emt 0:14:14]} Rc8 {[%emt 0:03:35]} 13. Rc1 {[%emt 0:09:20]} cxd4 {[%emt 0:02:44]} 14. exd4 {[%emt 0:01:24]} Re8 {[%emt 0:04:51]} 15. Na4 $146 {[%emt 0:12:55]} ({Predecessor:} 15. a3 Qd7 16. Bb1 Bf5 17. Ba2 Be6 18. Nf4 Nh5 19. Nxe6 fxe6 20. f4 Nf6 21. f5 {1-0 Salem,A (2622)-Ghosh,D (2569) Wch Blitz New York 2024 (5)}) 15... Nb4 {[%emt 0:07:05]} 16. Bb1 {[%emt 0:01:09]} Rxc1 {[%emt 0:03:37]} 17. Nxc1 {[%emt 0:01:42]} Nc6 {[%emt 0:01:54]} 18. Nc5 {[%emt 0:02:26]} Bc8 {[%emt 0:00:58]} 19. Bf2 {[%emt 0:03:30]} Bd6 {[%emt 0:04:17]} 20. Re1 {[%emt 0:01:31]} Rxe1+ {[%emt 0:01:10]} 21. Qxe1 {[%emt 0:00:25]} Qc7 {[%emt 0:01:17]} 22. N1d3 {[%emt 0:01:28]} Bf5 {[%emt 0:01:35][%cal Ob7b6]} (22... Bxh2 $6 23. g3 $16) 23. Nb3 {[%emt 0:03:40]} Bg6 {[%emt 0:07:50]} (23... Bxh2 24. g3 $16) 24. Bh4 {[%emt 0:04:25]} Nd7 {[%emt 0:02:58] Black is more active.} (24... Bxh2 $2 25. Bxf6 gxf6 26. Nb4 $17) 25. Bg3 {[%emt 0:01:36]} Nf8 {[%emt 0:10:50]} 26. Bxd6 {[%emt 0:16:21]} Qxd6 {[%emt 0:05:34]} 27. Ne5 {[%emt 0:02:36]} ({White should play} 27. Ndc5) 27... Bxb1 $17 {[%emt 0:04:58]} 28. Nxc6 {[%emt 0:00:10]} Bxa2 {[%emt 0:03:26]} 29. Ne7+ {[%emt 0:00:04]} (29. Nca5 {keeps fighting.}) 29... Kh8 {[%emt 0:00:18]} 30. Nc5 {[%emt 0:01:42]} b6 $40 {[%emt 0:04:18][%mdl 128] Black has strong attack.} 31. Na4 {[%emt 0:06:06] [#]} (31. Nd3 $17) 31... Ne6 {[%emt 0:00:52]} 32. Nc3 {[%emt 0:01:20]} Bb3 {[%emt 0:02:00]} 33. Qh4 {[%emt 0:02:09]} Ng5 {[%emt 0:04:09]} (33... Nxd4 $19 {And now ...Ne6 would win.} 34. Nc8 Qe6 35. Qxd4 Qxc8) 34. Qe1 {[%emt 0:01:18]} Ne6 {[%emt 0:05:10]} (34... Qf4 $17 35. h3 Ne6 (35... Qxd4 $2 {perishes.} 36. Qg3 $18) 36. Ncxd5 Bxd5 (36... Qxd4 $2 37. Qg3 $18) 37. Nxd5 Qxd4) 35. Qh4 $19 {[%emt 0:00:05] [#]} Nxd4 {[%emt 0:01:43][%mdl 512]} 36. Nexd5 {[%emt 0:00:18]} (36. Qxd4 Qxe7) 36... Nxf3 {[%emt 0:01:33]} 37. Qh3 {[%emt 0:00:51]} Bxd5 {[%emt 0:01:12]} 38. gxf3 {[%emt 0:00:11]} Qe6 {[%emt 0:02:12]} 39. Qg3 {[%emt 0:00:20]} Bc6 {[%emt 0:00:53]} 40. Kg2 {[%emt 0:01:07]} Kh7 {[%emt 0:00:21]} 41. Qc7 {[%emt 0:31:10]} Qg4+ {[%emt 0:30:34] Weighted Error Value: White=0.21 (precise) /Black=0.15 (very precise)   Mistake:       	White=3     	Black=2      Inaccurate:     	White=2     	Black=1      OK:         	White=9     	Black=19     Best:        	White=1     	---} 0-1

[Event "FIDE WSTC Open 50 2025"]
[Site "Prague"]
[Date "2025.02.19"]
[Round "3.23"]
[White "Novikov, Igor"]
[Black "Guiot Dorel, Jerome"]
[Result "1-0"]
[Annotator "TA"]
[ECO "D11"]
[WhiteElo "2490"]
[BlackElo "2030"]
[PlyCount "77"]
[EventDate "2025.02.17"]
[EventType "team-tourn"]
[EventCountry "CZE"]
[SourceTitle "playchess.com"]
[Source "ChessBase"]
[SourceQuality "1"]
[TimeControl "40/5400+30:1800+30"]

{[%evp 10,77,14,4,5,-4,2,7,15,4,11,0,1,0,3,0,8,14,48,59,64,55,58,0,61,43,59,45,81,67,62,61,71,75,83,66,86,59,64,73,90,39,39,40,39,25,29,22,29,22,27,22,41,41,41,34,47,27,129,143,127,127,244,258,598,586,564,591,585,587]} 1. d4 {[%emt 0:00:03]} d5 {[%emt 0:00:13]} 2. c4 {[%emt 0:00:09]} c6 {[%emt 0:00:10]} 3. Nf3 {[%emt 0:00:12]} Nf6 {[%emt 0:00:24]} 4. Qc2 {[%emt 0:00:33]} dxc4 {[%emt 0:02:32]} 5. Qxc4 {[%emt 0:00:08]} Bg4 {[%emt 0:00:22]} 6. Nbd2 {[%emt 0:08:01]} Nbd7 {[%emt 0:03:29] D23: Queen's Gambit Accepted: 3 Nf3 Nf6 sidelines.} 7. h3 {[%emt 0:03:53]} Bf5 {[%emt 0:03:53]} (7... Bxf3 {with more complications.} 8. Nxf3 e5 9. dxe5 Nxe5 10. Nxe5 Qa5+) 8. e3 {[%emt 0:05:46]} h6 $146 {[%emt 0:03:31] The position is equal.} (8... g6 9. Ng5 Be6 10. Nxe6 fxe6 11. Qxe6 Qc7 12. Be2 Bg7 13. Bf3 Nf8 14. Qb3 O-O-O {1-0 Goslawski,M (2091)-Krstulovic,A (2360) Warsaw Najdorf Memorial op-A 17th 2019 (1)}) 9. Be2 {[%emt 0:02:54]} e6 {[%emt 0:02:48]} 10. O-O {[%emt 0:01:19]} Be7 {[%emt 0:01:23]} 11. b4 {[%emt 0:10:18]} O-O {[%emt 0:04:58]} 12. a4 {[%emt 0:09:15]} a5 {[%emt 0:09:09]} 13. Ba3 {[%emt 0:14:08]} Nb6 {[%emt 0:13:29]} 14. Qb3 {[%emt 0:00:08]} axb4 {[%emt 0:00:41]} 15. Bxb4 {[%emt 0:00:05]} Nbd5 {[%emt 0:01:00]} 16. Bc5 {[%emt 0:07:33]} (16. Bxe7 $14 Qxe7 17. Ne5) 16... Qc7 {[%emt 0:10:05]} (16... Bxc5 $11 17. dxc5 Qc7) 17. Rfc1 {[%emt 0:03:29]} (17. Bxe7 {simplifies} Qxe7 18. Rfc1 Ra5 19. Nc4) 17... Rfc8 {[%emt 0:07:25]} 18. Ne5 {[%emt 0:07:00]} Ne4 {[%emt 0:05:50]} 19. Nxe4 {[%emt 0:01:54]} Bxe4 {[%emt 0:00:03]} 20. Nc4 {[%emt 0:01:31]} Re8 {[%emt 0:04:28]} 21. a5 {[%emt 0:01:37]} Nf6 {[%emt 0:05:19]} 22. Bb6 {[%emt 0:07:26]} Qc8 {[%emt 0:01:06][%csl Ob6] Strong Square White (b6)} 23. Nd2 {[%emt 0:01:11]} Bg6 {[%emt 0:03:59]} 24. Bf3 {[%emt 0:00:40]} Bf8 {[%emt 0:05:16]} 25. e4 {[%emt 0:03:33]} ({Better is} 25. a6 $16) 25... Qb8 $14 {[%emt 0:01:36]} 26. e5 {[%emt 0:02:38]} Nd7 {[%emt 0:01:59]} 27. Nc4 {[%emt 0:00:35][%cal Bd2c4,Bc4b6,Bb6d7][%mdl 32]} Nxb6 {[%emt 0:01:23]} 28. Nxb6 {[%emt 0:01:32]} Ra7 {[%emt 0:00:27]} 29. Nd7 {[%emt 0:01:30]} Qa8 {[%emt 0:02:48]} 30. Qc3 {[%emt 0:00:51]} Be7 {[%emt 0:01:53]} 31. g3 $1 {[%emt 0:01:59]} Bd8 {[%emt 0:01:39][%cal Rd8a5]} 32. Nb6 {[%emt 0:00:24]} Bxb6 {[%emt 0:01:03]} 33. axb6 {[%emt 0:00:02]} Rxa1 {[%emt 0:00:19]} (33... Ra6 $11) 34. Rxa1 $16 {[%emt 0:00:07][%cal Bc1a1,Ba1a7,Ba7b7][%mdl 32]} ({Resist} 34. Qxa1 Bd3 $14) 34... Qd8 {[%emt 0:00:18]} 35. Qc5 {[%emt 0:00:12] White is more active.} Qd7 {[%emt 0:01:17]} (35... Bd3 $16 36. Ra3 Bb5) 36. Ra7 {[%emt 0:02:39][%cal Of3c6] [#] Threatens to win with Bxc6!.} Rc8 {[%emt 0:01:10]} (36... Kh7 37. Qd6 Qc8) 37. Qd6 $18 {[%emt 0:00:55] White is clearly winning.} Qxd6 {[%emt 0:00:51]} 38. exd6 {[%emt 0:00:04]} Rd8 {[%emt 0:00:31]} 39. Rxb7 {[%emt 0:00:20] Weighted Error Value: White=0.08 (flawless) /Black=0.24 (precise)   Mistake:       	White=2     	Black=4      Inaccurate:     	White=1     	Black=2      OK:         	White=14    	Black=11     Best:        	---       	Black=1      Strong:       	White=1     	---} 1-0

[Event "FIDE WSTC Open 50 2025"]
[Site "Prague"]
[Date "2025.02.19"]
[Round "3.24"]
[White "Coste, Thierry"]
[Black "Rachels, Stuart"]
[Result "1/2-1/2"]
[Annotator "TA"]
[ECO "B57"]
[WhiteElo "2027"]
[BlackElo "2466"]
[PlyCount "37"]
[EventDate "2025.02.17"]
[EventType "team-tourn"]
[EventCountry "CZE"]
[SourceTitle "playchess.com"]
[Source "ChessBase"]
[SourceQuality "1"]
[TimeControl "40/5400+30:1800+30"]

{[%evp 15,37,28,30,35,35,36,32,27,26,37,20,25,29,20,41,29,56,49,58,54,66,58,48,50]} 1. e4 {[%emt 0:00:04]} c5 {[%emt 0:00:04]} 2. Nf3 {[%emt 0:00:06]} d6 {[%emt 0:00:07]} 3. d4 {[%emt 0:00:05]} cxd4 {[%emt 0:00:05]} 4. Nxd4 {[%emt 0:00:07]} Nf6 {[%emt 0:00:06]} 5. Nc3 {[%emt 0:00:05]} Nc6 {[%emt 0:00:06]} 6. Bc4 {[%emt 0:00:59]} Bd7 {[%emt 0:00:13]} 7. Be3 {[%emt 0:00:51]} Ng4 {[%emt 0:00:43]} 8. Nxc6 {[%emt 0:00:24]} bxc6 {[%emt 0:00:08]} 9. Bd2 {[%emt 0:00:51] B57: Classical Sicilian: Sozin with 6...Qb6.} g6 {[%emt 0:01:00]} 10. f4 {[%emt 0:03:49]} Bg7 {[%emt 0:02:28]} 11. h3 {[%emt 0:01:33]} Nf6 {[%emt 0:00:52][%cal Od6d5]} 12. e5 {[%emt 0:01:18]} Nd5 {[%emt 0:09:23]} 13. Nxd5 {[%emt 0:02:40]} cxd5 {[%emt 0:00:03]} 14. Bxd5 {[%emt 0:00:14]} Rb8 {[%emt 0:00:25]} 15. O-O {[%emt 0:03:38]} e6 {[%emt 0:31:47]} 16. Bb3 {[%emt 0:09:54] White is slightly better.} dxe5 {[%emt 0:02:22]} 17. Bc3 {[%emt 0:02:09]} Qc7 $146 {[%emt 0:01:53]} (17... Qb6+ 18. Kh2 Bb5 19. Re1 Rd8 20. Qg4 O-O 21. fxe5 Bh6 22. Re4 Bc6 23. Rd4 Be3 {1-0 Chen,R (2342)-Melillo,L (2297) Austin Spring GM 2024 (1)}) 18. Qe1 {[%emt 0:06:54]} O-O {[%emt 0:05:29]} 19. fxe5 {[%emt 0:05:24] Weighted Error Value: White=0.02 (flawless) /Black=0.05 (flawless)   Inaccurate:     	---       	Black=1      OK:         	White=6     	Black=7} 1/2-1/2

[Event "FIDE WSTC Open 50 2025"]
[Site "Prague"]
[Date "2025.02.19"]
[Round "3.25"]
[White "Sikorova, Olga"]
[Black "Andersson, Ulf"]
[Result "0-1"]
[Annotator "TA"]
[ECO "A36"]
[WhiteElo "2134"]
[BlackElo "2518"]
[PlyCount "112"]
[EventDate "2025.02.17"]
[EventType "team-tourn"]
[EventCountry "CZE"]
[SourceTitle "playchess.com"]
[Source "ChessBase"]
[SourceQuality "1"]
[TimeControl "40/5400+30:1800+30"]

{[%evp 23,112,33,41,22,43,24,27,28,36,24,38,-10,0,0,7,14,22,8,43,30,39,24,47,27,51,0,0,0,-4,-11,-17,-10,0,0,0,0,0,0,0,-18,-25,-27,-15,-46,-17,-109,-32,-350,-100,-154,-154,-154,-154,-162,-149,-163,-151,-158,-162,-148,-154,-271,-100,-125,-69,-91,-18,-18,-18,-37,0,-34,-19,-159,-109,-224,-233,-293,-286,-726,-24,-620,-579,-543,-546,-472,-472,-1242,-1213,-1566,-1539]} 1. c4 {[%emt 0:00:03]} c5 {[%emt 0:00:55]} 2. g3 {[%emt 0:00:31]} g6 {[%emt 0:01:33]} 3. Bg2 {[%emt 0:00:11]} Bg7 {[%emt 0:00:10]} 4. Nc3 {[%emt 0:00:07]} Nc6 {[%emt 0:00:55]} 5. d3 {[%emt 0:07:27]} Nf6 {[%emt 0:02:24][%cal Bg8f6,Bf6e8,Be8c7,Bc7e6][%mdl 32]} 6. e4 {[%emt 0:00:09]} O-O {[%emt 0:00:43]} 7. Nge2 {[%emt 0:00:16]} a6 {[%emt 0:02:00]} 8. a4 {[%emt 0:00:25]} Rb8 {[%emt 0:02:15]} 9. O-O {[%emt 0:00:30]} d6 {[%emt 0:00:47]} 10. h3 {[%emt 0:00:49]} Ne8 {[%emt 0:02:46]} 11. Be3 {[%emt 0:00:44]} Nd4 {[%emt 0:04:07]} 12. Rb1 {[%emt 0:05:40]} Bd7 {[%emt 0:04:32]} 13. b4 {[%emt 0:09:22] A36: Symmetrical English vs ...g6: 4 Bg2 Bg7.} Nc7 {[%emt 0:05:52]} 14. b5 {[%emt 0:14:06]} axb5 {[%emt 0:02:40]} 15. axb5 {[%emt 0:00:37] White has an edge.} Ra8 {[%emt 0:02:44]} 16. Kh2 {[%emt 0:19:55]} Nce6 $146 {[%emt 0:04:59] [#]} ({Predecessor:} 16... b6 17. Qc1 e6 18. Bg5 f6 19. Be3 e5 20. Bh6 Qe7 21. Bxg7 Qxg7 22. Qb2 Qh6 23. Nxd4 cxd4 {0-1 Popov,M (2369)-Chigaev,M (2531) EU-ch rapid Tallinn 2016 (6)}) 17. e5 {[%emt 0:04:13]} Bc8 {[%emt 0:02:00]} 18. exd6 {[%emt 0:01:19]} Qxd6 {[%emt 0:01:06]} 19. Ne4 {[%emt 0:01:28]} Qb6 {[%emt 0:06:06]} 20. N2c3 {[%emt 0:00:58]} f5 {[%emt 0:02:25]} 21. Nd5 {[%emt 0:01:05][%csl LRb6,LRe7]} Qd8 {[%emt 0:00:11]} 22. Nec3 {[%emt 0:00:32]} Qd6 {[%emt 0:02:20]} 23. Qd2 {[%emt 0:03:23]} Bd7 {[%emt 0:04:20]} 24. Nf4 {[%emt 0:07:32]} (24. h4 $14) 24... Ra3 {[%emt 0:02:51][%cal Oa3c3]} 25. Nxe6 {[%emt 0:08:27]} (25. Bxb7 $2 Rxc3 26. Qxc3 Nf3+ 27. Bxf3 Bxc3 $19) 25... Bxe6 {[%emt 0:02:39]} 26. Bf4 {[%emt 0:04:42]} (26. Bxb7 $2 Rxc3 27. Bf4 (27. Qxc3 $2 Nf3+ 28. Bxf3 Bxc3 $19) 27... Qb6 $19) 26... Qd7 {[%emt 0:01:35][%cal Oa3c3]} 27. Ne2 {[%emt 0:03:20]} Bf7 {[%emt 0:03:57]} 28. Nxd4 {[%emt 0:01:00]} Bxd4 {[%emt 0:00:23]} 29. Qe2 {[%emt 0:00:46]} b6 {[%emt 0:03:08]} 30. Bc1 {[%emt 0:01:07]} Ra7 {[%emt 0:00:58]} 31. Bb2 {[%emt 0:02:34]} Ra2 {[%emt 0:03:06][%cal Of5f4]} 32. Rfd1 {[%emt 0:00:55]} Rd8 {[%emt 0:06:56] White should prevent ...Rxb2.} 33. Bf3 {[%emt 0:00:18]} Qd6 {[%emt 0:03:27]} 34. Qc2 {[%emt 0:00:20]} (34. Rd2 $11) 34... Rd7 {[%emt 0:02:00] Black has more active pieces.} (34... f4 $17 35. Be4 Rd7) 35. Qb3 $2 {[%emt 0:00:37][%mdl 8192]} (35. Qe2 $1 $15) 35... Rda7 $2 {[%emt 0:00:21]} (35... Bxf2 $1 $19 {has better winning chances.} 36. Rg1 Qxd3 (36... Bxg1+ $2 37. Rxg1 Qxd3 38. Qxa2 $19) 37. Qxa2 Qxf3 (37... Bxg1+ $2 38. Rxg1 Qxf3 39. Bc1 $19)) 36. Kg2 {[%emt 0:00:47] [#]} ({Better is} 36. Rd2) 36... R7a4 $1 $17 {[%emt 0:04:28]} 37. Rd2 {[%emt 0:00:50] [#]} Rxb2 {[%emt 0:00:36]} 38. Rbxb2 {[%emt 0:00:49]} (38. Qxa4 Rxd2 39. Rf1 Kg7 $19 (39... Rxd3 $2 40. Qa2 $19)) 38... Rb4 {[%emt 0:00:08]} 39. Qa2 {[%emt 0:00:30] Qa8+ would now be deadly.} Bxb2 {[%emt 0:00:21]} 40. Rxb2 {[%emt 0:00:33]} Rxb2 {[%emt 0:00:55]} (40... Qxd3 $6 41. Rd2 Qc3 (41... Qxc4 $2 42. Qa1 $18) 42. Rd8+ Kg7 43. Qa7 $11) 41. Qxb2 {[%emt 0:30:01]} Qxd3 $19 {[%emt 0:30:11][%mdl 4096] Endgame KQB-KQB. Black is a pawn up.} 42. Qe5 {[%emt 0:00:42]} (42. Be2 $17 Qe4+ 43. f3) 42... Qd6 $2 {[%emt 0:02:18]} (42... Qxc4 43. Qb8+ Kg7 44. Qe5+ Kf8 45. Qb8+ Kg7 (45... Be8 46. Bc6 $16) 46. Qe5+ Kf8 47. Qb8+ Kg7 $11) (42... Bxc4 $19 {Threatens to win with ...Qf1+.} 43. Qxe7 Qf1+ (43... Bxb5 44. Qe6+ Kf8 45. Qf6+ Kg8 46. Qe6+ Kf8 47. Qf6+ Ke8 48. Qe6+ Kf8 $11) 44. Kh2 Qxf2+ (44... Bxb5 45. Bd5+ Kh8 46. Qf8#) 45. Bg2 Qd4 (45... Bxb5 46. Qe6+ Kf8 47. Qf6+ Kg8 48. Qe6+ Kf8 49. Qf6+ Kg8 50. Qe6+ $11)) 43. Qe2 {[%emt 0:01:01]} e5 {[%emt 0:03:42]} (43... Be6 $17 44. Qc2 Qd4) 44. Bc6 {[%emt 0:01:06]} e4 {[%emt 0:02:07]} (44... Kg7 $17) 45. Qa2 $1 $11 {[%emt 0:00:00]} Qd8 {[%emt 0:00:00]} 46. h4 {[%emt 0:00:00]} h6 {[%emt 0:00:00]} 47. h5 {[%emt 0:00:00]} gxh5 {[%emt 0:00:00]} 48. Qa1 {[%emt 0:00:00] Prevents h4} (48. Bd5 $11 {was the only way to keep the balance.}) 48... h4 {[%emt 0:00:00]} (48... e3 49. Qe5 exf2 (49... Bxc4 50. Qxe3 Kh7 51. Qe5 $15) 50. Qxf5 Qg5 (50... Bxc4 51. Qg6+ Kh8 52. Qxh6+ Kg8 53. Qg6+ Kf8 54. Qh6+ Kg8 55. Qg6+ Kf8 56. Qh6+ Kg8 $11) 51. Qxf2 Bxc4) 49. Qe5 {[%emt 0:00:00]} (49. gxh4 $17 {was the only defense.} Qxh4 50. Bd5) 49... hxg3 $19 {[%emt 0:00:00]} ({Don't take} 49... Bxc4 50. Qxf5 Bf7 51. Bxe4 $15) 50. Kxg3 {[%emt 0:00:00]} Bxc4 {[%emt 0:00:00]} 51. Kh3 $2 {[%emt 0:00:00]} (51. Qxf5 Qg5+ 52. Qxg5+ hxg5 53. Bxe4) 51... Qg5 $2 {[%emt 0:00:00]} ({Black should play} 51... Bf1+ $19 52. Kh2 Qg5 53. Qe8+ Kg7 54. Qd7+ Kh8 55. Qe8+ Qg8 56. Qe5+ Qg7 57. Qe8+ Kh7 58. Bxe4 fxe4 59. Qxe4+ Kg8 (59... Qg6 $2 60. Qb7+ Qg7 61. Qe4+ Kg8 62. Qd5+ Qf7 63. Qa8+ Kh7 64. Qe4+ Kg7 65. Qg4+ Kh8 66. Qh4 $19) 60. Qd5+ Qf7 61. Qa8+ Kh7 62. Qe4+ Kg7 63. Qe5+ Qf6 64. Qc7+ Kg6 65. Qg3+ Kh5) 52. Qe8+ $2 {[%emt 0:00:00][%mdl 8192]} (52. Bd5+ $11 Bxd5 53. Qxd5+ Kh8 54. Qe5+ Qg7 55. Qxf5) 52... Kh7 {[%emt 0:00:00] Black is clearly winning.} 53. Qd7+ {[%emt 0:00:00]} Kh8 {[%emt 0:00:00]} 54. Qe8+ {[%emt 0:00:00]} Kg7 {[%emt 0:02:08] ( -> ...Bf1+)} 55. Qe5+ {[%emt 0:00:00]} (55. Qd7+ $142 Bf7 56. Qc7) 55... Kh7 {[%emt 0:00:56]} 56. Qa1 {[%emt 0:03:04] Against Bf1+} Be2 {[%emt 0:04:13] Weighted Error Value: White=0.77/Black=0.38  Loses game:     	White=2     	---        Missed win:     	---       	Black=3      Mistake:       	White=9     	Black=4      Inaccurate:     	White=2     	Black=3      OK:         	White=9     	Black=13     Best:        	White=3     	Black=2      Strong:       	White=1     	Black=1} 0-1